bitfinex/quotes_ETHUSD_20250210
["timestamp","ask_amount","ask_price","bid_price","bid_amount"]
[1739150065265,0.05327635,2632.4,2632.2,0.4328977]
[1739150065451,3.85209635,2632.4,2632.2,0.4328977]
[1739150065660,0.05327635,2632.4,2632.3,0.8173]
[1739150065865,3.79844,2632.7,2632.3,0.8173]
[1739150065866,3.79851,2632.7,2632.3,0.8173]
[1739150066048,3.79851,2632.7,2632.6,3.02827001]
[1739150066568,3.79819,2632.9,2632.6,3.02827001]
[1739150066772,3.79789,2633.1,2632.6,3.02827001]
[1739150066961,3.79794,2633.0,2632.9,3.02827001]
[1739150067463,3.79838,2632.7,2632.6,3.02827001]
[1739150071771,3.79825,2632.8,2632.6,3.02827001]
[1739150072353,7.59661,2632.8,2632.6,3.02827001]
[1739150072871,3.79825,2632.8,2632.6,3.02827001]
[1739150073075,3.79821,2632.9,2632.6,3.33109701]
[1739150073251,7.59611,2633.0,2632.8,3.84557001]
[1739150073451,3.79805,2633.0,2632.8,3.84557001]
[1739150074051,3.79781,2633.1,2632.8,3.84557001]
[1739150074262,3.79796,2633.0,2632.8,4.338087]
[1739150074466,3.79809,2632.9,2632.8,4.338087]
[1739150074667,3.79796,2633.0,2632.8,4.338087]
[1739150075851,3.79796,2633.0,2632.9,2.60120012]
[1739150076055,3.79788,2633.1,2632.9,2.60120012]
[1739150076449,3.0,2633.6,2632.9,2.99600993]
[1739150076678,3.79722,2633.5,2633.4,2.60120012]
[1739150078780,6.7971,2633.6,2633.4,2.60120012]
[1739150078982,3.79722,2633.5,2633.4,2.60120012]
[1739150080985,3.79702,2633.7,2633.4,2.60120012]
[1739150081188,3.79702,2633.7,2633.6,2.60120012]
[1739150082351,3.79689,2633.8,2633.6,2.60120012]
[1739150083184,3.79693,2633.7,2633.6,2.60120012]
[1739150084376,3.7966,2634.0,2633.6,2.60120012]
[1739150084580,3.7966,2634.0,2633.9,2.60120012]
[1739150085882,3.79638,2634.1,2633.9,2.60120012]
[1739150086558,3.7963,2634.2,2633.9,2.60120012]
[1739150086754,3.79607,2634.3,2633.9,2.60120012]
[1739150086957,3.79602,2634.4,2633.8,4.57279]
[1739150086958,3.79602,2634.4,2634.3,2.60120012]
[1739150088392,3.85209069,2634.4,2634.3,2.60120012]
[1739150089698,3.85209069,2634.4,2633.4,3.34451477]
[1739150089699,3.79722,2633.5,2633.4,3.34451477]
[1739150089898,3.79722,2633.5,2633.4,2.60120012]
[1739150090057,3.85306347,2633.5,2633.4,2.60120012]
[1739150091492,4.61236347,2633.5,2633.4,2.60120012]
[1739150092875,3.85306347,2633.5,2633.4,2.60120012]
[1739150094990,3.79766,2633.2,2633.1,2.60120012]
[1739150095394,3.85315887,2633.2,2633.1,2.60120012]
[1739150096762,3.85315887,2633.2,2633.1,2.93605458]
[1739150096763,0.05549887,2633.2,2633.1,2.93605458]
[1739150096970,3.796,2634.4,2633.1,6.31095458]
[1739150096971,3.79708,2633.6,2633.1,6.31095458]
[1739150097169,3.79708,2633.6,2633.5,2.60120012]
[1739150098002,3.79696,2633.7,2633.5,2.60120012]
[1739150098198,3.79708,2633.6,2633.5,2.60120012]
[1739150099270,3.79751,2633.3,2633.2,2.60120012]
[1739150100100,3.79739,2633.4,2633.2,2.94381013]
[1739150100302,3.79739,2633.4,2633.2,2.60120012]
[1739150100303,3.79751,2633.3,2633.2,2.60120012]
[1739150100599,3.79773,2633.2,2632.9,3.42610012]
[1739150100804,3.79794,2633.0,2632.9,3.42610012]
[1739150101771,3.79782,2633.1,2632.9,4.19185338]
[1739150101970,3.79782,2633.1,2633.0,0.41918534]
[1739150103400,3.79794,2633.0,2632.9,4.19185338]
[1739150103903,0.05268654,2633.0,2632.9,4.19185338]
[1739150104104,3.79781,2633.1,2632.9,4.19185338]
[1739150104407,0.05268654,2633.0,2632.9,4.19185338]
[1739150105186,3.79761,2633.3,2632.9,4.19185338]
[1739150105390,3.79761,2633.3,2633.2,2.60120012]
[1739150107209,3.79761,2633.3,2632.6,8.86]
[1739150107210,3.79838,2632.7,2632.6,2.60120012]
[1739150108297,3.79782,2633.1,2632.7,0.8007]
[1739150108610,3.79782,2633.1,2633.0,2.60120012]
[1739150108803,3.79782,2633.1,2633.0,2.86132013]
[1739150109316,3.79782,2633.1,2633.0,2.60120012]
[1739150111480,3.79782,2633.1,2633.0,3.37389386]
[1739150115812,3.85038173,2633.1,2633.0,3.37389386]
[1739150115987,3.85038173,2633.1,2633.0,2.60120012]
[1739150116192,3.79823,2632.8,2632.7,2.60120012]
[1739150116674,3.85075502,2632.8,2632.7,2.60120012]
[1739150117009,3.85075502,2632.8,2632.7,2.86132013]
[1739150117387,0.05252502,2632.8,2632.7,2.86132013]
[1739150117590,3.7977,2633.2,2632.7,3.66202013]
[1739150117901,3.79766,2633.2,2633.1,2.60120012]
[1739150118083,3.79766,2633.2,2633.1,2.86132013]
[1739150118697,3.84995739,2633.2,2633.1,2.86132013]
[1739150119390,3.84995739,2633.2,2633.1,2.60120012]
[1739150121501,0.05229739,2633.2,2633.1,2.60120012]
[1739150121716,0.05229739,2633.2,2633.1,3.37130012]
[1739150121893,3.79761,2633.3,2633.1,3.37130012]
[1739150122289,0.05257639,2633.2,2633.1,3.37130012]
[1739150122615,3.79761,2633.3,2633.1,3.37130012]
[1739150122806,0.05257639,2633.2,2633.1,3.37130012]
[1739150122978,3.79732,2633.5,2633.1,3.37130012]
[1739150123185,0.05257639,2633.2,2633.1,0.7701]
[1739150123491,0.7767,2634.0,2633.1,0.7701]
[1739150123705,0.04886863,2633.9,2633.8,2.60120012]
[1739150123920,0.04886863,2633.9,2633.8,0.33713001]
[1739150124124,3.79629,2634.2,2633.7,0.55]
[1739150124413,0.04923581,2633.9,2633.7,0.55]
[1739150124621,3.79648,2634.1,2633.7,0.55]
[1739150124821,3.79629,2634.2,2634.0,2.60120012]
[1739150125115,3.79604,2634.4,2634.1,0.7701]
[1739150125286,3.79579,2634.5,2634.4,2.60120012]
[1739150127324,3.79541,2634.8,2634.4,2.86132013]
[1739150127486,3.79535,2634.8,2634.7,2.60120012]
[1739150129018,3.79521,2634.9,2634.7,2.60120012]
[1739150129266,3.79478,2635.2,2634.8,0.33713001]
[1739150129400,3.79478,2635.2,2635.1,2.60120012]
[1739150130091,4.57148,2635.2,2635.1,2.60120012]
[1739150130285,3.79521,2634.9,2634.8,2.60120012]
[1739150130510,3.79564,2634.6,2634.5,2.60120012]
[1739150131402,3.84688804,2634.6,2634.5,2.60120012]
[1739150132399,3.91808939,2634.6,2634.5,2.60120012]
[1739150134235,3.79607,2634.3,2634.2,2.60120012]
[1739150134428,3.7965,2634.0,2633.9,2.60120012]
[1739150134728,3.7965,2634.0,2633.2,0.11646041]
[1739150134729,3.79693,2633.7,2633.6,2.60120012]
[1739150135095,3.91937939,2633.7,2633.6,2.60120012]
[1739150135805,0.8144,2633.6,2633.3,2.60120012]
[1739150136135,3.79737,2633.4,2633.3,2.60120012]
[1739150136426,3.7978,2633.1,2633.0,2.60120012]
[1739150137026,3.92024939,2633.1,2633.0,2.60120012]
[1739150137323,4.78212185,2633.1,2633.0,2.60120012]
[1739150137523,4.73464939,2633.1,2633.0,2.60120012]
[1739150137730,3.79823,2632.8,2632.7,3.02750747]
[1739150137900,3.91827036,2632.8,2632.7,3.02750747]
[1739150138697,0.12004036,2632.8,2632.7,3.02750747]
[1739150139032,0.12004036,2632.8,2632.7,0.30275075]
[1739150139246,3.79823,2632.8,2632.7,0.30275075]
[1739150139527,3.79823,2632.8,2632.5,3.02750747]
[1739150139528,3.79852,2632.6,2632.5,3.02750747]
[1739150139893,3.91836926,2632.6,2632.5,3.02750747]
[1739150140094,6.91836926,2632.6,2632.5,3.02750747]
[1739150140505,3.79895,2632.3,2632.2,3.02750747]
[1739150140845,3.91851254,2632.3,2632.2,3.02750747]
[1739150143217,0.11956254,2632.3,2632.2,3.4161717]
[1739150143726,3.91851254,2632.3,2632.2,3.4161717]
[1739150143928,3.91851254,2632.3,2632.2,3.02750747]
[1739150144329,0.11956254,2632.3,2632.2,5.82520747]
[1739150144642,3.7986,2632.6,2632.2,6.37520747]
[1739150144940,3.79766,2633.2,2632.7,0.7977]
[1739150145137,3.79766,2633.2,2633.1,3.02750747]
[1739150145543,3.79753,2633.3,2633.1,3.02750747]
[1739150146311,3.79766,2633.2,2633.1,3.02750747]
[1739150148142,3.79809,2632.9,2632.5,3.02750747]
[1739150148445,3.79852,2632.6,2632.5,3.02750747]
[1739150149026,3.91788399,2632.6,2632.5,3.02750747]
[1739150150312,3.79895,2632.3,2632.2,3.02750747]
[1739150150511,3.91789499,2632.3,2632.2,3.02750747]
[1739150151552,3.7991,2632.2,2632.1,0.11491481]
[1739150151852,3.7991,2632.2,2632.1,3.14242228]
[1739150152148,0.11894499,2632.2,2632.1,3.45666451]
[1739150152322,3.79846,2632.7,2632.2,3.79908]
[1739150152642,3.79846,2632.7,2632.6,3.02750747]
[1739150153823,3.79881,2632.4,2632.3,3.02750747]
[1739150154211,3.79881,2632.4,2632.3,3.3417497]
[1739150155035,3.79881,2632.4,2632.3,3.02750747]
[1739150157350,3.79881,2632.4,2632.1,0.11491481]
[1739150157351,3.7991,2632.2,2632.1,0.11491481]
[1739150159292,7.6184905,2632.2,2632.1,4.81e-06]
[1739150159443,7.571,2632.2,2632.1,4.81e-06]
[1739150159623,7.59878,2632.0,2631.4,3.02750747]
[1739150159824,0.7719,2632.2,2631.7,3.83530747]
[1739150160028,3.79962,2631.9,2631.7,3.83530747]
[1739150160444,3.79968,2631.8,2631.7,3.83530747]
[1739150160740,3.79962,2631.9,2631.7,3.83530747]
[1739150160961,3.79939,2632.0,2631.7,4.21883822]
[1739150161155,3.79965,2631.9,2631.7,4.21883822]
[1739150161378,3.79968,2631.8,2631.7,3.02750747]
[1739150162235,3.80011,2631.5,2631.4,3.02750747]
[1739150162563,3.80054,2631.2,2631.1,3.02750747]
[1739150163391,3.80098,2630.9,2630.8,3.93556192]
[1739150164032,3.91992499,2630.9,2630.8,3.93556192]
[1739150164432,3.91992499,2630.9,2630.8,3.17478167]
[1739150164746,0.11894499,2630.9,2630.8,3.17478167]
[1739150164954,3.80085,2631.0,2630.8,3.17478167]
[1739150165154,7.6018,2631.0,2630.8,3.17478167]
[1739150165451,4.68986064,2630.9,2630.8,0.1472742]
[1739150165839,4.73737494,2630.9,2630.8,0.1472742]
[1739150166026,5.54368313,2630.9,2630.8,0.1472742]
[1739150166230,0.11698064,2630.9,2630.8,3.17478167]
[1739150166530,3.80058,2631.2,2630.9,0.7769]
[1739150166727,3.80054,2631.2,2631.1,3.02750747]
[1739150167164,3.80054,2631.3,2631.1,3.02750747]
[1739150167391,0.7925,2632.4,2631.1,5.02750747]
[1739150167588,7.5979,2632.3,2631.6,3.02750747]
[1739150167746,3.79971,2631.8,2631.6,3.02750747]
[1739150167932,3.79982,2631.7,2631.6,3.02750747]
[1739150168242,0.7925,2632.4,2631.6,3.02750747]
[1739150168566,3.79982,2631.7,2631.6,3.02750747]
[1739150168960,4.59219,2631.8,2631.3,3.02750747]
[1739150169164,3.80069,2631.1,2631.0,11.88750747]
[1739150169338,3.80098,2630.9,2630.8,0.1472742]
[1739150172143,7.64099477,2630.9,2630.8,4.2e-06]
[1739150172340,3.80317,2629.4,2629.2,3.80440747]
[1739150172541,3.80289,2629.6,2629.2,3.80440747]
[1739150172731,3.80261,2629.8,2629.5,3.02750747]
[1739150172931,3.80285,2629.7,2629.5,3.02750747]
[1739150173161,3.80261,2629.8,2629.5,3.02750747]
[1739150173965,3.80285,2629.6,2629.5,3.02750747]
[1739150174738,3.80329,2629.3,2629.2,3.02750747]
[1739150175270,3.91928377,2629.3,2628.9,3.78357588]
[1739150175660,3.80345,2629.2,2628.9,3.78357588]
[1739150175860,3.91808848,2629.2,2628.9,3.78357588]
[1739150176567,0.11463848,2629.2,2629.1,2.0]
[1739150176735,0.11463848,2629.2,2629.1,0.7769]
[1739150176938,3.8033,2629.3,2629.1,0.7769]
[1739150177134,3.80372,2629.0,2628.9,3.02750747]
[1739150177368,3.80418,2628.7,2628.6,3.02750747]
[1739150178067,3.80445,2628.5,2628.4,0.09280737]
[1739150178446,8.52357043,2628.5,2628.4,7.37e-06]
[1739150178755,8.52357043,2628.5,2628.1,3e-06]
[1739150178756,4.59738,2628.2,2628.1,3e-06]
[1739150178956,4.75180559,2628.2,2628.1,3e-06]
[1739150179275,7.75180559,2628.2,2628.1,3e-06]
[1739150179465,7.70423042,2628.2,2628.1,3e-06]
[1739150179775,9.23558646,2628.2,2628.1,3e-06]
[1739150180671,7.70423042,2628.2,2628.1,3e-06]
[1739150181863,3.91173042,2628.2,2628.1,3e-06]
[1739150182452,3.95929622,2628.2,2628.1,3e-06]
[1739150183138,4.75179622,2628.2,2628.1,3e-06]
[1739150183772,3.91173042,2628.2,2628.1,3e-06]
[1739150184071,3.95929452,2628.2,2628.1,3e-06]
[1739150184281,4.73569797,2628.2,2628.1,3e-06]
[1739150184754,5.52819797,2628.2,2628.1,3e-06]
[1739150185155,3.91173042,2628.2,2628.1,3e-06]
[1739150186356,3.80618,2627.3,2627.1,3.03250747]
[1739150186554,3.91278062,2627.2,2627.1,3.03250747]
[1739150189795,0.10645062,2627.2,2627.1,3.80940747]
[1739150190088,3.80604,2627.4,2627.1,4.19034822]
[1739150190314,0.10450345,2627.2,2627.1,4.19034822]
[1739150190459,7.61082,2627.9,2627.3,3.80618]
[1739150190665,3.80581,2627.6,2627.5,3.02750747]
[1739150190911,3.80562,2627.7,2627.2,3.02750747]
[1739150191219,3.80633,2627.2,2627.1,0.005]
[1739150191664,3.80633,2627.2,2627.1,1e-05]
[1739150191665,3.85391197,2627.2,2627.1,1e-05]
[1739150191864,4.64641197,2627.2,2627.1,1e-05]
[1739150192076,5.87228017,2627.2,2627.1,1e-05]
[1739150192281,3.80633,2627.2,2627.1,1e-05]
[1739150192877,3.806,2627.5,2627.1,1e-05]
[1739150193111,3.80597,2627.5,2627.3,3.02750747]
[1739150193281,0.10462941,2627.4,2627.3,3.02750747]
[1739150193815,0.10435524,2627.4,2627.3,3.02750747]
[1739150194117,3.80604,2627.4,2627.3,3.02750747]
[1739150194277,3.80633,2627.2,2627.1,1e-05]
[1739150194762,3.91068524,2627.2,2627.1,1e-05]
[1739150194960,0.10435524,2627.2,2626.9,7.61e-06]
[1739150195160,4.59912,2627.0,2626.9,7.61e-06]
[1739150195392,4.70368273,2627.0,2626.9,7.61e-06]
[1739150195717,5.55945603,2627.0,2626.9,7.61e-06]
[1739150195865,5.60704912,2627.0,2626.9,7.61e-06]
[1739150196062,8.60704912,2627.0,2626.9,7.61e-06]
[1739150196362,8.55945603,2627.0,2626.9,7.61e-06]
[1739150197485,3.80821,2625.9,2625.8,0.55]
[1739150197892,3.9106677,2625.9,2625.8,0.55]
[1739150199478,0.1024577,2625.9,2625.8,0.55]
[1739150199673,3.80799,2626.1,2625.8,0.55]
[1739150200000,0.7584,2626.4,2625.8,0.55]
[1739150200170,0.10230195,2626.0,2625.8,0.55]
[1739150200568,3.80821,2625.9,2625.8,0.55]
[1739150200773,3.91060096,2625.9,2625.8,0.55]
[1739150201903,0.10239096,2625.9,2625.8,0.55]
[1739150202280,3.80808,2626.0,2625.8,0.55]
[1739150202482,0.10219068,2625.9,2625.8,0.55]
[1739150202682,1.6143456,2626.9,2625.9,0.7761]
[1739150202878,0.58970065,2626.8,2625.8,0.55]
[1739150203077,3.80806,2626.1,2625.8,0.55]
[1739150203479,3.80766,2626.3,2625.8,0.55]
[1739150203684,3.80794,2626.1,2625.8,0.55]
[1739150204297,3.80766,2626.3,2625.8,0.55]
[1739150204298,3.80767,2626.3,2625.8,0.55]
[1739150204510,7.61488,2626.5,2626.0,0.7761]
[1739150204710,3.80742,2626.5,2626.0,0.7761]
[1739150205112,7.61486,2626.5,2626.0,0.7761]
[1739150205317,3.80742,2626.5,2626.0,0.7761]
[1739150205634,3.80766,2626.3,2626.0,0.7761]
[1739150206013,3.80742,2626.5,2626.0,1.5227209]
[1739150206318,7.61488,2626.5,2626.0,5.3307809]
[1739150206507,3.80752,2626.4,2626.0,1.5227209]
[1739150206883,3.80742,2626.5,2626.0,5.3307809]
[1739150207080,4.56522,2626.9,2626.0,0.7466209]
[1739150207386,3.80777,2626.3,2626.0,0.7466209]
[1739150207621,3.80777,2626.3,2625.9,3.38465089]
[1739150208202,0.10257635,2626.2,2625.9,3.38465089]
[1739150208409,0.7584,2626.9,2625.9,3.38465089]
[1739150208585,0.10257635,2626.1,2625.9,3.38465089]
[1739150208784,3.80764,2626.3,2625.9,4.14568415]
[1739150209012,0.10257635,2626.2,2625.9,4.14568415]
[1739150209217,3.80821,2625.9,2625.8,2.55]
[1739150209414,3.80836,2625.8,2625.7,0.7668]
[1739150209620,3.80852,2625.7,2625.5,0.1472721]
[1739150210115,7.6171,2625.7,2625.5,0.1472721]
[1739150210317,0.10245028,2625.6,2625.5,0.1472721]
[1739150210508,3.91110028,2625.6,2625.5,0.1472721]
[1739150210704,0.04760701,2626.2,2625.5,3.9560321]
[1739150210705,3.80778,2626.2,2625.5,3.9560321]
[1739150211011,3.80781,2626.2,2625.6,3.80864]
[1739150211214,0.10226484,2626.1,2625.6,3.80864]
[1739150211513,3.80836,2625.9,2625.5,4.0810046]
[1739150211928,0.10226484,2625.8,2625.5,4.0810046]
[1739150212246,0.04760119,2626.3,2625.5,3.53192299]
[1739150212414,3.80865,2625.6,2625.5,0.1472721]
[1739150212815,0.10239094,2625.6,2625.5,0.1472721]
[1739150213425,0.10239094,2625.6,2625.5,7.34071299]
[1739150213625,3.80816,2626.0,2625.5,4.30652299]
[1739150213915,0.10242803,2625.6,2625.5,4.30652299]
[1739150214116,3.80816,2626.0,2625.5,4.30652299]
[1739150214317,0.10242803,2625.6,2625.5,8.11531299]
[1739150214543,3.80816,2626.0,2625.5,8.11531299]
[1739150214743,0.10242803,2625.6,2625.5,8.11531299]
[1739150214949,0.7724,2626.5,2625.5,4.30652299]
[1739150215129,0.10242803,2625.6,2625.5,8.11530299]
[1739150215330,3.80785,2626.2,2625.6,3.80865]
[1739150215529,3.80785,2626.2,2625.7,3.80843]
[1739150215741,0.10234644,2626.1,2625.7,3.80843]
[1739150216139,0.10234644,2626.1,2626.0,4.58267]
[1739150216339,3.80715,2626.7,2626.0,4.58264]
[1739150216566,3.80702,2626.8,2626.1,3.8078]
[1739150216776,3.80702,2626.8,2626.0,0.7746]
[1739150216777,0.09960037,2626.6,2626.3,7.19218089]
[1739150216921,3.80677,2626.9,2626.4,3.80748]
[1739150217116,3.80699,2626.8,2626.3,3.38465089]
[1739150217339,3.90678345,2626.8,2626.3,7.19228089]
[1739150217565,0.09979345,2626.8,2626.3,3.38465089]
[1739150217767,3.90670345,2626.8,2626.5,3.04152373]
[1739150219356,7.61421,2626.7,2626.5,3.04152373]
[1739150219519,3.80706,2626.7,2626.5,3.04152373]
[1739150219718,4.57848,2627.4,2626.6,0.7746]
[1739150219935,3.80628,2627.3,2627.0,3.04152373]
[1739150220136,3.80585,2627.6,2627.0,3.04152373]
[1739150220541,4.57803,2627.7,2627.1,3.80638]
[1739150220852,0.7724,2627.7,2627.1,4.58107]
[1739150221153,0.7724,2627.7,2627.1,0.7746]
[1739150221454,3.80582,2627.6,2627.1,0.7746]
[1739150222023,3.80599,2627.5,2627.1,0.7746]
[1739150222566,3.80647,2627.2,2627.0,3.04152373]
[1739150222773,3.80647,2627.2,2626.8,0.7746]
[1739150222774,3.80647,2627.1,2626.8,0.7746]
[1739150222922,3.80647,2627.1,2626.7,3.81449526]
[1739150223419,0.09979345,2627.0,2626.9,3.80676]
[1739150223754,3.80579,2627.6,2626.9,4.58136]
[1739150224055,3.80618,2627.3,2627.2,3.04152373]
[1739150224223,3.80612,2627.4,2627.2,3.04152373]
[1739150224424,3.80645,2627.2,2626.9,3.04152373]
[1739150224772,3.80662,2627.0,2626.7,0.77297153]
[1739150225323,4.567315,2627.4,2626.9,3.04152373]
[1739150225576,3.80584,2627.6,2627.2,3.04152373]
[1739150225776,0.400484,2628.2,2627.5,3.04152373]
[1739150225777,0.8178,2627.9,2627.5,3.04152373]
[1739150226078,4.205404,2628.2,2627.8,3.04152373]
[1739150226625,0.8178,2628.3,2627.8,3.04152373]
[1739150226823,3.80489,2628.2,2627.8,3.04152373]
[1739150227046,3.80467,2628.4,2627.8,3.04152373]
[1739150227356,0.04756283,2628.3,2627.5,3.04152373]
[1739150227522,3.80503,2628.1,2627.5,3.81434281]
[1739150227842,4.19028928,2628.1,2627.6,3.80567]
[1739150228046,3.80503,2628.1,2627.8,3.04152373]
[1739150228243,3.80475,2628.3,2627.8,3.04152373]
[1739150228460,3.80459,2628.4,2628.1,3.04152373]
[1739150228683,3.80451,2628.5,2628.1,3.04152373]
[1739150228987,3.80466,2628.4,2628.1,3.04152373]
[1739150229133,4.62183,2628.8,2628.1,6.84652373]
[1739150229333,3.80431,2628.6,2628.1,6.84652373]
[1739150229622,0.462183,2628.7,2628.1,3.04152373]
[1739150229865,0.8178,2628.8,2628.1,6.84654373]
[1739150230028,3.80435,2628.6,2628.1,6.84654373]
[1739150230445,3.80435,2628.6,2628.1,6.84645373]
[1739150230738,3.80383,2629.0,2628.4,3.04152373]
[1739150230933,0.8178,2629.1,2628.4,3.04152373]
[1739150230934,3.80404,2628.8,2628.4,3.04152373]
[1739150231622,3.80424,2628.7,2628.4,3.04152373]
[1739150231825,3.80434,2628.6,2628.4,3.04152373]
[1739150232022,3.80445,2628.5,2628.4,3.04152373]
[1739150232342,3.80488,2628.2,2628.1,3.04152373]
[1739150233627,3.80531,2627.9,2627.8,3.04152373]
[1739150234473,3.80497,2628.2,2627.8,3.04152373]
[1739150234673,3.80503,2628.1,2627.8,3.04152373]
[1739150234877,0.8178,2628.5,2628.0,3.04152373]
[1739150235077,3.80446,2628.5,2628.3,3.04152373]
[1739150235282,3.80446,2628.5,2627.8,0.8055]
[1739150235283,3.80474,2628.3,2628.0,3.04152373]
[1739150235584,3.8049,2628.2,2628.0,3.04152373]
[1739150236246,6.80378,2629.0,2628.0,3.04152373]
[1739150236247,0.7716,2629.3,2628.1,0.8262]
[1739150236444,3.80445,2628.5,2628.1,0.8262]
[1739150237175,0.1014112,2628.4,2628.1,0.8262]
[1739150237890,0.1014112,2628.4,2628.1,1.58769923]
[1739150238044,3.80445,2628.5,2628.1,1.58769923]
[1739150238241,3.80423,2628.7,2628.4,3.04152373]
[1739150238881,7.60848,2628.7,2628.4,3.04152373]
[1739150239071,3.80423,2628.7,2628.4,3.04152373]
[1739150240183,3.80431,2628.6,2628.4,3.04152373]
[1739150240362,7.60848,2628.7,2628.4,3.04152373]
[1739150240568,3.80423,2628.7,2628.4,3.04152373]
[1739150241049,7.60853,2628.7,2628.4,3.04152373]
[1739150241253,3.80445,2628.5,2628.4,3.04152373]
[1739150241565,3.80437,2628.6,2628.4,3.04152373]
[1739150241753,3.80402,2628.8,2628.4,3.04152373]
[1739150241959,3.8038,2629.0,2628.7,3.04152373]
[1739150242167,3.80388,2628.9,2628.7,3.04152373]
[1739150242349,3.80401,2628.8,2628.7,3.04152373]
[1739150242878,3.80387,2628.9,2628.7,3.04152373]
[1739150243610,3.80354,2629.2,2628.7,7.2324361]
[1739150243907,3.80324,2629.4,2629.1,3.04152373]
[1739150244057,3.80343,2629.2,2629.1,3.04152373]
[1739150244568,3.80343,2629.2,2628.7,0.38677237]
[1739150244569,3.8043,2628.6,2628.5,3.04152373]
[1739150244771,0.7716,2629.1,2628.5,3.04152373]
[1739150244987,0.04755207,2629.3,2628.8,3.04152373]
[1739150245290,3.80343,2629.2,2629.1,3.04152373]
[1739150246282,3.80387,2628.9,2628.8,3.04152373]
[1739150248301,4.5748,2629.4,2628.8,3.04152373]
[1739150248482,3.80336,2629.3,2629.2,3.04152373]
[1739150251198,3.80317,2629.4,2629.2,3.04152373]
[1739150251573,3.80296,2629.6,2629.2,3.04152373]
[1739150251764,3.80296,2629.6,2629.5,3.04152373]
[1739150252106,3.85049824,2629.6,2629.5,3.04152373]
[1739150252513,3.80296,2629.6,2629.5,3.04152373]
[1739150252804,3.80285,2629.6,2629.5,3.04152373]
[1739150253301,3.90713864,2629.6,2629.5,3.04152373]
[1739150254068,3.80329,2629.3,2629.2,3.04152373]
[1739150254901,0.10428864,2629.3,2629.2,3.86772373]
[1739150255078,3.80301,2629.5,2629.2,3.86772373]
[1739150255267,0.10428864,2629.3,2629.2,3.86772373]
[1739150255471,3.80272,2629.7,2629.2,7.67111373]
[1739150255671,7.60556,2629.7,2629.6,3.04152373]
[1739150257573,7.60556,2629.7,2629.2,0.8262]
[1739150257574,3.80314,2629.5,2629.3,3.04152373]
[1739150257774,3.80288,2629.6,2629.3,3.04152373]
[1739150258090,3.80279,2629.7,2629.2,4.62955]
[1739150258594,7.60539,2629.8,2629.3,3.80322]
[1739150258781,3.80253,2629.9,2629.7,3.04152373]
[1739150258987,3.80222,2630.1,2629.7,3.86752373]
[1739150259304,3.80222,2630.1,2630.0,3.04152373]
[1739150259675,3.84974738,2630.1,2630.0,3.04152373]
[1739150260200,3.80222,2630.1,2630.0,3.04152373]
[1739150260376,3.80201,2630.2,2630.0,3.04152373]
[1739150260781,3.80213,2630.1,2630.0,3.04152373]
[1739150261281,3.80201,2630.2,2630.0,3.04152373]
[1739150261476,3.80181,2630.4,2630.0,3.04152373]
[1739150261730,4.35152,2630.6,2630.3,3.86752373]
[1739150261878,0.55,2630.6,2630.3,3.86752373]
[1739150262414,4.3517,2630.4,2630.3,3.86752373]
[1739150262778,4.3517,2630.4,2630.3,3.04152373]
[1739150263481,4.3517,2630.4,2630.3,3.86752373]
[1739150264089,4.3517,2630.4,2630.3,3.04152373]
[1739150264416,4.3517,2630.4,2629.7,0.826]
[1739150264417,3.80257,2629.8,2629.7,0.826]
[1739150264890,3.80244,2629.9,2629.7,0.826]
[1739150265087,3.80197,2630.3,2629.7,0.826]
[1739150265291,0.55,2630.4,2629.8,3.80242]
[1739150265523,0.55,2630.4,2630.3,3.04152373]
[1739150265683,4.3517,2630.4,2630.3,3.04152373]
[1739150266185,4.3992232,2630.4,2630.0,3.04152373]
[1739150266383,3.80213,2630.1,2630.0,3.04152373]
[1739150266903,3.80201,2630.2,2630.0,3.04152373]
[1739150267218,3.80191,2630.3,2630.1,0.30415237]
[1739150267509,3.80191,2630.3,2630.2,3.04152373]
[1739150267911,0.55,2630.4,2630.3,0.826]
[1739150268319,0.65565873,2630.4,2630.3,0.826]
[1739150268525,4.45735873,2630.4,2630.3,0.826]
[1739150269096,4.45735873,2630.4,2630.2,3.04152373]
[1739150269097,3.80184,2630.3,2630.2,3.04152373]
[1739150269430,4.70835194,2630.3,2630.2,3.04152373]
[1739150269625,3.90749873,2630.3,2630.2,3.04152373]
[1739150270508,0.10565873,2630.3,2630.2,3.04152373]
[1739150270694,3.90749873,2630.3,2630.2,3.04152373]
[1739150271522,0.10565873,2630.3,2630.2,3.04152373]
[1739150271824,3.90749873,2630.3,2630.2,3.82012373]
[1739150272625,0.10565873,2630.3,2630.2,4.2021361]
[1739150273297,3.90749873,2630.3,2630.2,4.2021361]
[1739150273493,0.10565873,2630.3,2630.2,4.2021361]
[1739150273819,0.10565873,2630.3,2630.2,8.0041261]
[1739150274039,0.10565873,2630.3,2630.2,4.2021361]
[1739150274547,3.90749873,2630.3,2630.2,4.2021361]
[1739150274744,0.10565873,2630.3,2630.2,4.2021361]
[1739150275227,0.10565873,2630.3,2630.2,8.0041261]
[1739150275427,0.10565873,2630.3,2630.2,4.2021361]
[1739150276011,0.10565873,2630.3,2630.2,8.0041261]
[1739150276206,0.10565873,2630.3,2630.2,4.2021361]
[1739150277228,3.90749873,2630.3,2630.2,3.04152373]
[1739150279853,3.80228,2630.0,2629.9,3.04152373]
[1739150280352,3.90887897,2630.0,2629.9,3.04152373]
[1739150280759,0.10659897,2630.0,2629.9,3.04152373]
[1739150280959,0.10659897,2630.0,2629.9,10.66406746]
[1739150281108,0.55,2630.4,2629.9,3.82012373]
[1739150281308,4.3517,2630.4,2630.3,3.04152373]
[1739150281637,3.80201,2630.2,2630.1,2.60704927]
[1739150282431,4.56971,2630.2,2630.1,2.60704927]
[1739150282610,3.80242,2629.9,2629.8,2.60704927]
[1739150282811,3.84995367,2629.9,2629.8,2.60704927]
[1739150283246,3.80242,2629.9,2629.8,2.60704927]
[1739150283433,3.90812329,2629.9,2629.8,2.60704927]
[1739150284512,3.90812329,2629.9,2628.9,4.18428]
[1739150284513,3.80285,2629.6,2629.5,2.60704927]
[1739150285143,3.90855329,2629.6,2629.5,2.60704927]
[1739150285746,3.8031,2629.5,2629.4,3.0349905]
[1739150286540,3.90880329,2629.5,2629.4,3.0349905]
[1739150288949,3.90880329,2629.5,2629.1,3.0349905]
[1739150288950,3.80343,2629.2,2629.1,3.0349905]